Cogmind - Beta 11 @@@ ROGUE MODE // 2022.03.29 @ 01:21:14 Player: Dytto Result: Destroyed by D-53 Grenadier with Mini Grenade Launcher Performance ------------- Evolutions (1) 500 Regions Visited (3) 600 Robots Destroyed (7) 35 Value Destroyed (195) 195 Prototype IDs (3) 60 Alien Tech Used (0) 0 Bonus (0) 0 TOTAL SCORE: 1390 Bonus ------- None Cogmind --------- Core Integrity 0/400 Matter 267/300 Energy 40/100 System Corruption 10% Temperature Cool (67) Movement Rolling (100) Location -9/Mines Parts ------- > --- POWER (1) -------- (None) > --- PROPULSION (3) --- Armored Huge Wheel > --- UTILITY (3) ------ Targeting Computer > --- WEAPON (2) ------- Advanced Assault Cannon > --- INVENTORY (5) ---- ECM Suite Hardened Light Armor Plating Light Assault Rifle Plasma Cutter Peak State ------------ > --- POWER ------------ (None) > --- PROPULSION ------- Armored Huge Wheel > --- UTILITY ---------- Targeting Computer Layered Light Armor Plating > --- WEAPON ----------- Advanced Assault Cannon > --- INVENTORY -------- ECM Suite Hardened Light Armor Plating Light Assault Rifle Plasma Cutter [Rating: 17] Favorites ----------- Power Ion Engine Engine Ion Engine Propulsion Wheel Wheel Wheel Utility Light Armor Plating Device ECM Suite Processor Targeting Computer Protection Light Armor Plating Weapon Light Assault Rifle Energy Gun EM Pulse Gun Energy Cannon Improved EM Pulse Cannon Ballistic Gun Light Assault Rifle Ballistic Cannon Advanced Assault Cannon Build | -11 -10 -9 -9 ------- Run | Scr Mat Mat Min Slots Evolved 2 | . . 2 . Power . | . . . . Propulsion 1 | . . 1 . Utility 1 | . . 1 . Weapon . | . . . . Parts Attached 19 | 5 4 2 8 Power 2 | 1 . . 1 Engine 2 | 1 . . 1 Core . | . . . . Reactor . | . . . . Propulsion 3 | 2 . . 1 Treads . | . . . . Leg . | . . . . Wheel 3 | 2 . . 1 Hover . | . . . . Flight . | . . . . Utility 7 | . 3 1 3 Device 1 | . 1 . . Storage . | . . . . Processor 1 | . . . 1 Hackware . | . . . . Protection 5 | . 2 1 2 Artifact . | . . . . Weapon 7 | 2 1 1 3 Energy Gun 4 | 1 1 1 1 Energy Cannon 1 | . . . 1 Ballistic Gun 1 | 1 . . . Ballistic Cannon 1 | . . . 1 Launcher . | . . . . Special Weapon . | . . . . Impact Weapon . | . . . . Slashing Weapon . | . . . . Piercing Weapon . | . . . . Special Melee Weapon . | . . . . Unidentified Prototypes 1 | . 1 . . Parts Lost 9 | . . . 9 Power 2 | . . . 2 Propulsion 2 | . . . 2 Utility 2 | . . . 2 Weapon 3 | . . . 3 Highest Loss Streak 9 | . . . 9 To Critical Strikes . | . . . . Average Slot Usage (%) 95 | . 98 88 78 Engine 13 | . 14 11 9 Wheel 26 | . 28 22 19 Device 12 | . 13 11 2 Protection 14 | . 13 22 19 Energy Gun 14 | . 14 17 18 Ballistic Gun 11 | . 14 4 . Naked Turns . | . . . . Heaviest Build 23 | 8 14 19 23 Greatest Support 28 | 20 20 20 28 Greatest Overweight (x) 3 | . . . 3 Average Overweight (x) . | . . . . Largest Inventory Capacity 5 | 5 5 5 5 Average Capacity 5 | 5 5 5 5 Most Carried 5 | 2 5 5 5 Average Carried 4 | . 4 4 4 Final Capacity 5 | 5 5 5 5 Final Carried 5 | 2 5 5 4 Class Distribution -------------------- 100% | Mutant Dominant Class ---------------- Mutant | -10/Materials Mutant | -9/Materials Mutant | -9/Mines Resources | -11 -10 -9 -9 ----------- Run | Scr Mat Mat Min Matter Collected 364 | 171 141 . 52 Remotely . | . . . . Salvage Created 270 | . 200 . 70 Parts 15 | . 14 . 1 Haulers Intercepted . | . . . . Recyclers Shooed . | . . . . Parts Field Recycled . | . . . . Retrieved Matter . | . . . . Parts Self-Destructed . | . . . . Prevented . | . . . . Kills | -11 -10 -9 -9 ------- Run | Scr Mat Mat Min Combat Hostiles Destroyed 11 | . 6 . 5 Guns 8 | . 6 . 2 Cannons 3 | . . . 3 Classes Destroyed 4 | . 2 . 2 Swarmer 3 | . 3 . . Grunt 3 | . 3 . . Demolisher 1 | . . . 1 Assembled 4 | . . . 4 Best Kill Streak 5 | . 3 . 5 Combat Bots Only 5 | . 3 . 5 Max Kills in Single Turn 1 | . 1 . 1 Gunslinging . | . . . . Exploded . | . . . . Melee . | . . . . Uniques/NPCs Destroyed . | . . . . Combat | -11 -10 -9 -9 -------- Run | Scr Mat Mat Min Damage Taken 1629 | . 199 100 1330 Core 437 | . 32 24 381 Absorbed by Shields . | . . . . Core Remaining (%) 93 | 100 87 . . Volleys Fired 30 | . 22 . 8 Largest 2 | . 2 . 2 Hottest 134 | . 76 . 134 Shots Fired 56 | . 44 . 12 Gun 51 | . 44 . 7 Cannon 5 | . . . 5 Launcher . | . . . . Special . | . . . . Kinetic 25 | . 22 . 3 Thermal 19 | . 15 . 4 Explosive . | . . . . Electromagnetic 12 | . 7 . 5 Robot Hit Streak 6 | . 6 . 4 Robot Miss Streak 4 | . 4 . 4 Penetration Max . | . . . . Secondary Targets 2 | . 1 . 1 Max Gunslinging Chain 1 | . 1 . 1 Shots Hit Robots 36 | . 26 . 10 Core Hits 26 | . 11 . 15 Critical Kills . | . . . . Critical Parts Destroyed . | . . . . Critical Strikes 2 | . 1 . 1 Blast 1 | . . . 1 Corrupt 1 | . 1 . . Melee Attacks . | . . . . Impact . | . . . . Slashing . | . . . . Piercing . | . . . . Sneak Attacks . | . . . . Combat Hostiles . | . . . . Follow-up Attacks . | . . . . Damage Inflicted 539 | . 325 . 214 Guns 437 | . 325 . 112 Cannons 102 | . . . 102 Explosions . | . . . . Melee . | . . . . Ramming . | . . . . Kinetic 158 | . 105 . 53 Thermal 213 | . 135 . 78 Explosive . | . . . . Electromagnetic 168 | . 85 . 83 Impact . | . . . . Slashing . | . . . . Piercing . | . . . . Highest Corruption 10 | . . . 10 Average Corruption 9 | . . . 9 Corruption Purged . | . . . . Corruption Blocked . | . . . . Effects 2 | . . . 2 Message Errors 1 | . . . 1 Matter Fused 1 | . . . 1 Overload Shots . | . . . . Overflow Damage . | . . . . Projectiles . | . . . . Explosions . | . . . . Melee . | . . . . Knockbacks . | . . . . Impact . | . . . . Kinetic . | . . . . Secondary . | . . . . Self-Inflicted Damage . | . . . . Shots . | . . . . Rammed . | . . . . Targets Rammed . | . . . . Kicked . | . . . . Crushed . | . . . . Highest Temperature 334 | . 174 . 334 Average Temperature 107 | . 72 . 193 Received Heat Transfer 213 | . 54 39 120 Siege Activations . | . . . . Robots Corrupted . | . . . . Combat Hostiles . | . . . . Parts Fried . | . . . . Impact Corruptions . | . . . . Robots Melted . | . . . . Combat Hostiles . | . . . . Parts Melted 1 | . 1 . . Heat Transferred 391 | . 296 . 95 Parts Sabotaged . | . . . . Parts Stolen . | . . . . Parts Stripped . | . . . . Power Chain Reactions . | . . . . Missiles Intercepted . | . . . . Alert | -11 -10 -9 -9 ------- Run | Scr Mat Mat Min Peak Influence 115 | . 115 108 72 Initial 48 | . . 48 42 Average 32 | . 29 64 48 Maximum Alert Level . | . . . . Low Security (%) 100 | 100 100 100 100 Level 1 . | . . . . Level 2 . | . . . . Level 3 . | . . . . Level 4 . | . . . . Level 5 . | . . . . High Security . | . . . . Max Security . | . . . . Squads Dispatched 3 | . 3 . . Investigation 1 | . 1 . . Extermination . | . . . . Reinforcement 2 | . 2 . . Assault . | . . . . Garrison . | . . . . Intercept . | . . . . Searches Triggered . | . . . . Construction Impeded . | . . . . Haulers Reinforced . | . . . . Active Scanning Responses . | . . . . Cargo Convoy Interrupts . | . . . . Stealth | -11 -10 -9 -9 --------- Run | Scr Mat Mat Min Distress Signals 2 | . . 2 . Communications Jammed . | . . . . Distress Signals . | . . . . Times Spotted 52 | . 20 8 24 Peak Tracking Total 17 | . 3 9 17 Tactical Retreats 5 | . 3 1 1 Traps | -11 -10 -9 -9 ------- Run | Scr Mat Mat Min Traps Triggered 2 | . 2 . . Indirectly . | . . . . Trap Hack Attempts . | . . . . Triggered . | . . . . Disarmed . | . . . . Reprogrammed . | . . . . Reused . | . . . . Traps Extracted . | . . . . Installed . | . . . . Triggered . | . . . . Machines | -11 -10 -9 -9 ---------- Run | Scr Mat Mat Min Machines Disabled 1 | . . . 1 Max in Single Turn 1 | . . . 1 Machines Sabotaged . | . . . . Garrisons Compromised . | . . . . Overloaded Fab Kills . | . . . . Hacking | -11 -10 -9 -9 --------- Run | Scr Mat Mat Min Machines Accessed 8 | . 5 2 1 Terminals 7 | . 5 2 . Fabricators . | . . . . Repair Stations . | . . . . Recycling Units . | . . . . Scanalyzers . | . . . . Garrison Access . | . . . . Total Hacks 10 | . 7 2 1 Successful 8 | . 5 2 1 Failed 2 | . 2 . . Catastrophic . | . . . . Database Lockouts . | . . . . Manual . | . . . . Terminals 9 | . 7 2 . Fabricators . | . . . . Repair Stations . | . . . . Recycling Units . | . . . . Scanalyzers . | . . . . Garrison Access . | . . . . Terminal Hacks 8 | . 5 2 1 Record 5 | . 3 2 . Robot Analysis 1 | . 1 . . Prototype ID Bank 1 | . 1 . . Open Door 1 | . . . 1 Fabricator Hacks . | . . . . Repair Station Hacks . | . . . . Recycling Unit Hacks . | . . . . Scanalyzer . | . . . . Garrison Access Hacks . | . . . . Unauthorized Hacks . | . . . . Terminals . | . . . . Fabricators . | . . . . Repair Stations . | . . . . Recycling Units . | . . . . Scanalyzers . | . . . . Garrison Access . | . . . . Data Cores Recovered . | . . . . Used . | . . . . Hacking Detections 5 | . 5 . . Full Trace Events . | . . . . Feedback Events . | . . . . Feedback Blocked . | . . . . Robot Schematics Acquired . | . . . . Robots Built . | . . . . Authchips . | . . . . Time . | . . . . Total Robot Build Rating . | . . . . Part Schematics Acquired . | . . . . Parts Built . | . . . . Authchips . | . . . . Time . | . . . . Total Part Build Rating . | . . . . Parts Repaired . | . . . . Time . | . . . . Parts Recycled . | . . . . Recycled Matter . | . . . . Retrieved Matter . | . . . . Retrieved Components . | . . . . Parts Scanalyzed . | . . . . Part Schematics Acquired . | . . . . Parts Damaged . | . . . . Bothacking | -11 -10 -9 -9 ------------ Run | Scr Mat Mat Min Used RIF Installer . | . . . . Robots Hacked . | . . . . Non-combat . | . . . . Combat . | . . . . Robot Hacks Applied . | . . . . Relay Couplers Released . | . . . . Fabnet Peak Effective % . | . . . . Robots Rewired . | . . . . Allies Hacked . | . . . . Hacks Repelled . | . . . . Allies | -11 -10 -9 -9 -------- Run | Scr Mat Mat Min Total Allies . | . . . . Largest Group . | . . . . Highest-Rated Group . | . . . . Highest-Rated Ally . | . . . . Total Orders . | . . . . Ally Attacks . | . . . . Total Damage . | . . . . Kills . | . . . . Allies Corrupted . | . . . . Allies Melted . | . . . . Intel | -11 -10 -9 -9 ------- Run | Scr Mat Mat Min Robot Analysis Total 1 | . 1 . . Derelict Logs Recovered . | . . . . Drone Launches . | . . . . Drone Recoveries . | . . . . Exploration | -11 -10 -9 -9 ------------- Run | Scr Mat Mat Min Turns Passed 1244 | 83 927 94 140 Spaces Moved 816 | 54 539 113 110 Core 4 | 2 . . 2 Treads . | . . . . Legs . | . . . . Wheels 812 | 52 539 113 108 Hover . | . . . . Flight . | . . . . Fastest Speed 50 | 50 80 80 80 Average Speed 81 | 78 80 80 94 Slowest Speed 200 | 80 80 80 200 Overloaded Moves . | . . . . Propulsion Burnouts . | . . . . Robots Hopped . | . . . . Cave-ins Triggered . | . . . . Exploration Rate (%) 30 | 5 79 15 22 Regions Visited 3 Branch Regions 1 Pre-discovered Areas . | . . . . Known Exits Taken . | . . . . Unknown Exits Taken 3 | 1 1 1 . Scrap Searched . | . . . . Spaces Dug . | . . . . Terrain Destroyed 1 | . . . 1 Melee . | . . . . Projectile 1 | . . . 1 AOE . | . . . . Terrain Rammed . | . . . . Walls Destroyed . | . . . . Machines Disabled . | . . . . Actions | -11 -10 -9 -9 --------- Run | Scr Mat Mat Min Total 1335 | 91 995 117 132 Wait 449 | 31 417 . 1 Move 813 | 53 538 112 110 Hop . | . . . . Pick Up 12 | 2 8 2 . Fast Attach 14 | 5 2 . 7 Attach 2 | . . 1 1 Detach 1 | . . . 1 Swap 3 | . 2 1 . Drop 11 | . 6 1 4 Fire 30 | . 22 . 8 Melee . | . . . . Ram . | . . . . Kick . | . . . . Crush . | . . . . Escape Stasis . | . . . . Rewire . | . . . . Trap . | . . . . Miscellaneous . | . . . . Route ------- -11/Scrapyard -10/Materials (discovered 3 exits: *Mat x2 / [*Min]) -9/Materials -9/Mines History --------- Turn | Location | Event 46 | -11/Scrapyard | Discovered new exit (range 15) 84 | -11/Scrapyard | Entered Materials 314 | -10/Materials | Build established: Mutant 699 | -10/Materials | Discovered new exit (range 16) 904 | -10/Materials | Discovered new exit (range 11) 979 | -10/Materials | Discovered new exit (range 16) 1011 | -10/Materials | Entered another Materials area 1011 | -9/Materials | Evolved 2 slots: Propulsion x1, Utility x1 1093 | -9/Materials | Discovered new exit (range 16) 1105 | -9/Materials | Entered Mines 1113 | -9/Mines | Joined a pair of Derelicts in attacking an 0b10 outpost 1193 | -9/Mines | Assembled infested the area 1200 | -9/Mines | Met a Derelict who couldn't figure out how to use a Trap Extractor 1228 | -9/Mines | System corruption reached 10% 1229 | -9/Mines | Core integrity fell below 50% 1243 | -9/Mines | Core integrity fell below 20% 1245 | -9/Mines | Destroyed by D-53 Grenadier with Mini Grenade Launcher Last Messages --------------- 01228_ as-20010 destroyed. 01228_ as-00500 destroyed. 01230_ as-06239 destroyed. 01230_ as-50117 destroyed. 01230_ as-53225 destroyed. 01230_ as-76153 destroyed. 01231_ as-13046 destroyed. 01231_ as-38867 destroyed. 01233_ as-81721 destroyed. 01234_ The unstable cave ceiling collapses. 01235_ Acquired Arm. Huge Wheel. 01237_ Lyr. Light Armor Plating destroyed. 01238_ The unstable cave ceiling collapses. 01239_ D-53 Grenadier Imp. Light Armor Plating blasted off. 01240_ =B%EWSASI ENQQXIJE62OM